fUST/lending_fUST_20260613
["ID","MTS","AMOUNT","RATE_DAILY","PERIOD"]
[424941434,1781307043000,-1389.49,0.00036438,11]
[424941431,1781307043000,-500.0,0.00036438,18]
[424941433,1781307043000,-4047.28,0.00036438,18]
[424941436,1781307043000,-871.89,0.00036438,18]
[424941571,1781307044000,-986.45,0.00036712,18]
[424941566,1781307044000,-500.0,0.00036712,18]
[424941567,1781307044000,-585.41,0.00036712,18]
[424941593,1781307044000,-901.61,0.00036712,18]
[424941574,1781307044000,-500.0,0.00036712,2]
[424941559,1781307044000,-1324.26,0.00036712,18]
[424941579,1781307044000,-500.0,0.00036712,18]
[424941581,1781307044000,-500.0,0.00036712,18]
[424941583,1781307044000,-500.0,0.00036712,18]
[424941572,1781307044000,-1914.34,0.00036712,18]
[424941569,1781307044000,-910.43,0.00036712,18]
[424941592,1781307044000,-871.89,0.00036712,18]
[424941523,1781307044000,-1619.39,0.00036712,18]
[424941586,1781307044000,-500.0,0.00036712,18]
[424941588,1781307044000,-4047.28,0.00036712,18]
[424941585,1781307044000,-1265.91,0.00036712,18]
[424941597,1781307044000,-2028.56,0.00036712,18]
[424941590,1781307044000,-1389.49,0.00036712,11]
[424941602,1781307044000,-500.0,0.00036712,18]
[424941604,1781307044000,-3560.74,0.00036712,18]
[424941578,1781307044000,-853.85,0.00036712,18]
[424941605,1781307044000,-3198.72,0.00036712,18]
[424941595,1781307044000,-517.76,0.00036712,18]
[424941600,1781307044000,-7028.73,0.00036712,18]
[424941541,1781307044000,-602.19,0.00036712,18]
[424941564,1781307044000,-500.0,0.00036712,2]
[424941618,1781307044000,-5718.06,0.00036712,18]
[424941521,1781307044000,-500.0,0.00036712,18]
[424941524,1781307044000,-671.48,0.00036712,18]
[424941528,1781307044000,-500.0,0.00036712,18]
[424941526,1781307044000,-500.0,0.00036712,18]
[424941519,1781307044000,-1702.77,0.00036712,18]
[424941517,1781307044000,-766.8,0.00036712,18]
[424941532,1781307044000,-412.35674065,0.00036712,18]
[424941534,1781307044000,-500.0,0.00036712,18]
[424941530,1781307044000,-643.02,0.00036712,18]
[424941537,1781307044000,-500.0,0.00036712,18]
[424941539,1781307044000,-500.0,0.00036712,18]
[424941543,1781307044000,-500.0,0.00036712,18]
[424941545,1781307044000,-1195.88,0.00036712,18]
[424941549,1781307044000,-654.71,0.00036712,18]
[424941554,1781307044000,-569.26,0.00036712,18]
[424941547,1781307044000,-500.0,0.00036712,18]
[424941555,1781307044000,-500.0,0.00036712,18]
[424941550,1781307044000,-2499.62,0.00036712,18]
[424941536,1781307044000,-562.6,0.00036712,18]
[424941557,1781307044000,-544.01,0.00036712,18]
[424941552,1781307044000,-1835.05,0.00036712,18]
[424941562,1781307044000,-668.76,0.00036712,18]
[424941576,1781307044000,-701.25,0.00036712,18]
[424941625,1781307044000,-500.0,0.00036712,18]
[424941560,1781307044000,-500.0,0.00036712,18]
[424941620,1781307044000,-1024.8,0.00036712,18]
[424941661,1781307044000,-709.67,0.00036986,18]
[424941671,1781307044000,-500.0,0.00036986,18]
[424941667,1781307044000,-766.8,0.00036986,18]
[424941669,1781307044000,-1702.77,0.00036986,18]
[424941675,1781307044000,-671.48,0.00036986,18]
[424941673,1781307044000,-1619.39,0.00036986,18]
[424941676,1781307044000,-500.0,0.00036986,18]
[424941678,1781307044000,-500.0,0.00036986,18]
[424941689,1781307044000,-602.19,0.00036986,18]
[424941691,1781307044000,-500.0,0.00036986,18]
[424941693,1781307044000,-1195.88,0.00036986,18]
[424941695,1781307044000,-500.0,0.00036986,18]
[424941700,1781307044000,-1659.62565029,0.00036986,18]
[424941697,1781307044000,-654.71,0.00036986,18]
[424941698,1781307044000,-2499.62,0.00036986,18]
[424941680,1781307044000,-643.02,0.00036986,18]
[424941684,1781307044000,-562.6,0.00036986,18]
[424941685,1781307044000,-500.0,0.00036986,18]
[424941687,1781307044000,-501.050367,0.00036986,18]
[424941682,1781307044000,-500.0,0.00036986,18]
[424941704,1781307044000,-175.42434971,0.00036986,18]
[424941705,1781307044000,-172.58388507,0.00036986,18]
[424941622,1781307044000,-500.0,0.00036712,18]
[424941658,1781307044000,-500.0,0.00036986,18]
[424941665,1781307044000,-500.0,0.00036986,18]
[424941598,1781307044000,-1515.41,0.00036712,18]
[424941660,1781307044000,-314.42,0.00036986,18]
[424941663,1781307044000,-500.0,0.00036986,18]
[424941607,1781307044000,-3762.88,0.00036712,18]
[424941627,1781307044000,-19478.41,0.00036712,18]
[424941614,1781307044000,-924.05,0.00036712,18]
[424941611,1781307044000,-500.0,0.00036712,18]
[424941612,1781307044000,-500.0,0.00036712,18]
[424941629,1781307044000,-902.06,0.00036712,18]
[424941616,1781307044000,-987.52,0.00036712,18]
[424941634,1781307044000,-624.03,0.00036712,18]
[424941633,1781307044000,-1398.04,0.00036712,18]
[424941636,1781307044000,-500.0,0.00036712,18]
[424941609,1781307044000,-1101.88,0.00036712,18]
[424941638,1781307044000,-2786.59950626,0.000368,90]
[424941631,1781307044000,-500.0,0.00036712,18]
[424941656,1781307044000,-500.0,0.00036986,18]
[424941654,1781307044000,-500.0,0.00036986,18]
[424941652,1781307044000,-411.40721534,0.00036986,18]
[424941649,1781307044000,-500.0,0.00036986,18]
[424941647,1781307044000,-533.48,0.00036986,18]
[424941623,1781307044000,-2158.36,0.00036712,18]
[424941651,1781307044000,-500.0,0.00036986,18]
[424941640,1781307044000,-3620.0,0.00036933,2]
[424941641,1781307044000,-186.0,0.00036933,2]
[424941645,1781307044000,-945.0125,0.00036986,18]
[424941643,1781307044000,-1836.0,0.00036933,2]
[424941727,1781307046000,-200.0,0.00036384,2]
[424941726,1781307046000,-200.0,0.00035877,2]
[424941728,1781307046000,-396.67611493,0.00036986,18]
[424941730,1781307046000,-544.01,0.00036986,18]
[424941729,1781307046000,-500.0,0.00036986,18]
[424941736,1781307046000,-585.41,0.00036986,18]
[424941734,1781307046000,-500.0,0.00036986,2]
[424941731,1781307046000,-1324.26,0.00036986,18]
[424941737,1781307046000,-63.82236113,0.00036986,18]
[424941735,1781307046000,-500.0,0.00036986,18]
[424941732,1781307046000,-500.0,0.00036986,18]
[424941733,1781307046000,-668.76,0.00036986,18]
[424941738,1781307186000,-775.0749,0.00024,2]
[424941742,1781307450000,700.82319379,0.000237,30]
[424941743,1781307455000,700.82319378,0.000237,30]
[424941745,1781307460000,700.82319378,0.000237,30]
[424941754,1781307793000,280.32927752,0.000237,30]
[424941756,1781307799000,280.32927751,0.000237,30]
[424941758,1781307802000,280.32927751,0.000237,30]
[424941761,1781307859000,445.51524299,0.00024658,120]
[424941769,1781308136000,168.19756651,0.000237,30]
[424941770,1781308141000,168.1975665,0.000237,30]
[424941771,1781308146000,1000.0,0.0002428,30]
[424941772,1781308152000,-615.908,0.00017013,9]
[424941783,1781308232000,-195.0,0.00018438,3]
[424941784,1781308232000,-578.75895051,0.00018513,2]
[424941782,1781308232000,-193.80317218,0.00017013,9]
[424942043,1781308240000,-2000.0,0.00025344,120]
[424942047,1781308240000,-170.93995095,0.00025344,2]
[424942052,1781308240000,-163.96989739,0.0002539,2]
[424942054,1781308240000,-185.01300253,0.0002539,2]
[424942038,1781308240000,-295.83392913,0.00025344,2]
[424942031,1781308240000,-6771.5021028,0.0002521,2]
[424942040,1781308240000,-171.58035963,0.00025344,2]
[424942034,1781308240000,-540.28074077,0.00025344,2]
[424942036,1781308240000,-209.80210304,0.00025344,2]
[424942033,1781308240000,-385.09878706,0.00025344,2]
[424942012,1781308240000,-224.26342201,0.000187,2]
[424942014,1781308240000,-5000.0,0.000239,5]
[424942025,1781308240000,-192.54939353,0.00024963,2]
[424942016,1781308240000,-389.5999,0.00024,2]
[424942010,1781308240000,-4421.24104949,0.00018513,2]
[424942029,1781308240000,-263.24327808,0.00024963,2]
[424942027,1781308240000,-360.18716051,0.00024963,2]
[424942024,1781308240000,-156.0,0.00024466,13]
[424942022,1781308240000,-180.09358026,0.00024393,2]
[424942020,1781308240000,-224.39227552,0.00024293,2]
[424942042,1781308240000,-526.48655617,0.00025344,2]
[424942018,1781308240000,-251.855299,0.00024201,2]
[424942048,1781308240000,-210.04319744,0.00025344,2]
[424942050,1781308240000,-219.88954639,0.00025344,2]
[424942057,1781308240000,-1100.65,0.00025391,2]
[424942096,1781308240000,-1227.46077122,0.000275,2]
[424942086,1781308240000,-1628.515,0.000271,2]
[424942092,1781308240000,-1045.77,0.000271,3]
[424942094,1781308240000,-184.903,0.000271,15]
[424942082,1781308240000,-500.0,0.00027098,2]
[424942088,1781308240000,-1628.51,0.000271,2]
[424942084,1781308240000,-500.0,0.00027098,2]
[424942080,1781308240000,-500.0,0.00027098,2]
[424942078,1781308240000,-500.0,0.00027098,2]
[424942071,1781308240000,-500.0,0.00027098,2]
[424942075,1781308240000,-500.0,0.00027098,2]
[424942045,1781308240000,-166.99534638,0.00025344,2]
[424942066,1781308240000,-500.0,0.00027098,2]
[424942097,1781308240000,-1125.99252493,0.000275,2]
[424942069,1781308240000,-500.0,0.00027098,2]
[424942067,1781308240000,-536.70464994,0.00027098,2]
[424942064,1781308240000,-173.0,0.00027,7]
[424942073,1781308240000,-500.0,0.00027098,2]
[424942062,1781308240000,-1187.459,0.000256,3]
[424942060,1781308240000,-195.176184,0.00025391,120]
[424942059,1781308240000,-1000.0,0.00025391,120]
[424942055,1781308240000,-220.37532705,0.0002539,2]
[424942076,1781308240000,-500.0,0.00027098,2]
[424942103,1781308241000,-488.64401159,0.000281,2]
[424942101,1781308241000,-1125.99252493,0.000278,2]
[424942100,1781308241000,-1227.46077122,0.000278,2]
[424942151,1781308243000,-500.0,0.00028497,2]
[424942144,1781308243000,-1227.46077122,0.000283,2]
[424942142,1781308243000,-738.81675963,0.000281,2]
[424942146,1781308243000,-200.91,0.00028488,3]
[424942145,1781308243000,-1125.99252493,0.000283,2]
[424942143,1781308243000,-1125.99252493,0.000281,2]
[424942148,1781308243000,-162.94994222,0.00028497,2]
[424942150,1781308243000,-381.45663497,0.00028497,2]
[424942152,1781308243000,-185.7116093,0.00028497,2]
[424942149,1781308243000,-500.0,0.00028497,2]
[424942147,1781308243000,-337.05005778,0.00028497,2]
[424942153,1781308243000,-49.2038603,0.00028497,2]
[424942176,1781308246000,-500.0,0.00028497,2]
[424942174,1781308246000,-500.0,0.00028497,2]
[424942177,1781308246000,-432.76194414,0.00028497,2]
[424942175,1781308246000,-500.0,0.00028497,2]
[424942172,1781308246000,-450.7961397,0.00028497,2]
[424942173,1781308246000,-500.0,0.00028497,2]
[424942171,1781308246000,-962.37841287,0.00026998,2]
[424942183,1781308415000,262.93935639,0.000237,30]
[424942184,1781308420000,262.93935637,0.000237,30]
[424942185,1781308425000,262.93935637,0.000237,30]
[424942202,1781308758000,157.76361383,0.000237,30]
[424942204,1781308763000,157.76361382,0.000237,30]
[424942218,1781309253000,20000.0,0.00023,120]
[424942253,1781309432000,-357.26982633,0.0001429,9]
[424942255,1781309432000,-126.09596869,0.00014434,9]
[424942262,1781309432000,-648.1942693,0.00014434,9]
[424942264,1781309432000,-4225.70976201,0.00014434,9]
[424942266,1781309432000,-859.33038336,0.000158,2]
[424942268,1781309432000,-219.20758517,0.00016,2]
[424942270,1781309432000,-1187.4325772,0.00016584,2]
[424942273,1781309432000,-164.22411,0.000169,2]
[424942277,1781309432000,-2882.9993501,0.00017,2]
[424942279,1781309432000,-13732.49829591,0.00017,2]
[424942275,1781309432000,-500.0,0.00016999,2]
[424942271,1781309432000,-204.224647,0.00016666,2]
[424942281,1781309432000,-158.0,0.00017918,3]
[424942287,1781309432000,-176.8888224,0.00018597,2]
[424942284,1781309432000,-1688.22928031,0.00018,2]
[424942290,1781309432000,-2233.01454233,0.00018897,2]
[424942293,1781309432000,-623.88230932,0.00018997,2]
[424942319,1781309432000,-500.0,0.00018997,2]
[424942318,1781309432000,-500.0,0.00018997,2]
[424942320,1781309432000,-6092.55036315,0.00019,2]
[424942308,1781309432000,-500.0,0.00018997,2]
[424942302,1781309432000,-500.0,0.00018997,2]
[424942311,1781309432000,-290.58730296,0.00018997,2]
[424942321,1781309432000,-4296.67818282,0.00019,2]
[424942305,1781309432000,-500.0,0.00018997,2]
[424942299,1781309432000,-500.0,0.00018997,2]
[424942316,1781309432000,-500.0,0.00018997,2]
[424942313,1781309432000,-500.0,0.00018997,2]
[424942310,1781309432000,-500.0,0.00018997,2]
[424942296,1781309432000,-500.0,0.00018997,2]
[424942315,1781309432000,-500.0,0.00018997,2]
[424942336,1781309438000,-2233.01454228,0.00021897,2]
[424942330,1781309438000,-1000.0,0.00016505,2]
[424942343,1781309438000,-185.55739948,0.00025395,2]
[424942339,1781309438000,-169.2978411,0.00025014,2]
[424942344,1781309438000,-166.67849754,0.00025395,2]
[424942340,1781309438000,-187.43042526,0.00025014,2]
[424942334,1781309438000,-1406.82315048,0.0002061,2]
[424942338,1781309438000,-2233.01454228,0.00024898,2]
[424942335,1781309438000,-184.903,0.00020824,2]
[424942333,1781309438000,-20134.06243919,0.0002,2]
[424942332,1781309438000,-579.49,0.00019,2]
[424942331,1781309438000,-14434.17344483,0.00019,2]
[424942346,1781309438000,-221.09810259,0.00025395,2]
[424942345,1781309438000,-338.59568219,0.00025395,2]
[424942342,1781309438000,-164.22411,0.0002535,2]
[424942337,1781309438000,-775.0749,0.00024,2]
[424942341,1781309438000,-157.71973597,0.00025295,2]
[424942358,1781309438000,-173.0,0.00027,7]
[424942357,1781309438000,-172.52734899,0.00025395,2]
[424942360,1781309438000,-11116.66797363,0.00027395,120]
[424942359,1781309438000,-207.0,0.00027209,2]
[424942356,1781309438000,-387.69632175,0.00025395,2]
[424942352,1781309438000,-280.52140981,0.00025395,2]
[424942355,1781309438000,-357.7446383,0.00025395,2]
[424942354,1781309438000,-393.21059185,0.00025395,2]
[424942350,1781309438000,-298.08482982,0.00025395,2]
[424942351,1781309438000,-374.86085053,0.00025395,2]
[424942347,1781309438000,-322.50768515,0.00025395,2]
[424942349,1781309438000,-416.76530959,0.00025395,2]
[424942353,1781309438000,-255.9349963,0.00025395,2]
[424942348,1781309438000,-231.4626804,0.00025395,2]
[424942361,1781309439000,-1376.06203447,0.00027395,120]
[424942372,1781309441000,-315.90118252,0.00027395,120]
[424942371,1781309441000,-5000.0,0.00027395,120]
[424942382,1781309443000,-395.96697451,0.00027395,120]
[424942394,1781309608000,220.86905937,0.000237,30]
[424942395,1781309613000,220.86905935,0.000237,30]
[424942399,1781309725000,20000.0,0.00024658,120]
[424942401,1781309728000,20000.0,0.00024658,120]
[424942402,1781309738000,20000.0,0.00024658,120]
[424942406,1781309928000,176.69524748,0.000237,30]
[424942414,1781310183000,1000.0,0.00024264,30]
[424942430,1781310262000,350.87,0.00024658,30]
[424942446,1781310632000,-4890.0,0.00017279,9]
[424942490,1781310639000,-151.0,0.00024539,2]
[424942488,1781310639000,-151.0,0.00024539,2]
[424942485,1781310639000,-151.0,0.00024539,2]
[424942489,1781310639000,-151.0,0.00024539,2]
[424942487,1781310639000,-151.0,0.00024539,2]
[424942482,1781310639000,-160.9,0.00024425,2]
[424942484,1781310639000,-151.0,0.00024539,2]
[424942486,1781310639000,-151.0,0.00024539,2]
[424942483,1781310639000,-160.9,0.00024525,2]
[424942481,1781310639000,-196.66106927,0.000244,2]
[424942480,1781310639000,-835.3987,0.000244,2]
[424942472,1781310639000,-296.81303014,0.00023032,2]
[424942478,1781310639000,-160.9,0.00024225,2]
[424942476,1781310639000,-160.9,0.00024125,2]
[424942477,1781310639000,-193.11,0.00024142,2]
[424942475,1781310639000,-193.11,0.00024042,2]
[424942468,1781310639000,-156.42,0.00017808,2]
[424942470,1781310639000,-184.903,0.00020837,2]
[424942473,1781310639000,-265.484398,0.00023831,2]
[424942474,1781310639000,-160.9,0.00024025,2]
[424942493,1781310639000,-160.9,0.00024625,2]
[424942471,1781310639000,-238.0,0.00022877,8]
[424942469,1781310639000,-500.0,0.00019999,2]
[424942467,1781310639000,-110.0,0.00017279,9]
[424942479,1781310639000,-160.9,0.00024325,2]
[424942492,1781310639000,-10080.6934249,0.00024553,2]
[424942495,1781310639000,-769.09,0.00024658,7]
[424942497,1781310639000,-160.9,0.00024725,2]
[424942520,1781310639000,-592495.16703823,0.00027698,2]
[424942517,1781310639000,-1795.40183487,0.00027411,120]
[424942519,1781310639000,-349.15517081,0.000275,2]
[424942518,1781310639000,-1154.2240412,0.000275,2]
[424942516,1781310639000,-769.21259721,0.00027407,2]
[424942515,1781310639000,-160.0,0.00027407,2]
[424942514,1781310639000,-1962.27293489,0.00027164,2]
[424942513,1781310639000,-358.28591057,0.00027163,2]
[424942491,1781310639000,-271.83529402,0.00024539,2]
[424942505,1781310639000,-216.26,0.00025142,7]
[424942507,1781310639000,-173.0,0.00027,7]
[424942510,1781310639000,-500.0,0.00027163,2]
[424942511,1781310639000,-500.0,0.00027163,2]
[424942509,1781310639000,-500.0,0.00027163,2]
[424942494,1781310639000,-1208.58,0.00024658,2]
[424942512,1781310639000,-293.22447735,0.00027163,2]
[424942498,1781310639000,-160.9,0.00024825,2]
[424942496,1781310639000,-219.74,0.00024658,2]
[424942501,1781310639000,-187.0142732,0.00025014,2]
[424942499,1781310639000,-160.9,0.00024925,2]
[424942502,1781310639000,-160.9,0.00025025,2]
[424942504,1781310639000,-160.9,0.00025125,2]
[424942503,1781310639000,-1962.27293495,0.00025041,2]
[424942508,1781310639000,-500.0,0.00027163,2]
[424942506,1781310639000,-374.02854641,0.00025395,2]
[424942500,1781310639000,-6300.0,0.00025001,2]
[424942611,1781310786000,-187.05789817,0.0002503,2]
[424942614,1781310922000,2000.0,0.00015095,120]
[424942617,1781310935000,2000.0,0.00015095,120]
[424942618,1781310938000,152.0,0.00024152,30]
[424942620,1781310989000,2988.0,0.00024,120]
[424942623,1781311042000,20000.0,0.00024,120]
[424942685,1781311752000,-615.908,0.00013114,9]
[424942769,1781311831000,-90.08169277,0.00013114,9]
[424942764,1781311831000,-274.24289103,0.00013114,9]
[424942762,1781311831000,-1071.458,0.00013114,9]
[424942770,1781311831000,-1147.22803797,0.00013246,9]
[424942760,1781311831000,-970.49786276,0.00013114,9]
[424943049,1781311840000,-165.83438079,0.00023601,2]
[424943054,1781311840000,-172.80176321,0.00023601,2]
[424943056,1781311840000,-189.35584414,0.00023671,2]
[424943058,1781311840000,-696.1,0.00023836,2]
[424943062,1781311840000,-696.1,0.00024384,2]
[424943060,1781311840000,-696.1,0.0002411,2]
[424943064,1781311840000,-348.5899,0.000244,2]
[424943067,1781311840000,-192.91131105,0.00024458,2]
[424943069,1781311840000,-171.19288169,0.00024458,2]
[424943075,1781311840000,-188.07565684,0.00024458,2]
[424943071,1781311840000,-196.00045769,0.00024458,2]
[424943073,1781311840000,-331.66876159,0.00024458,2]
[424943066,1781311840000,-162.22834923,0.00024458,2]
[424943089,1781311840000,-696.1,0.00024658,2]
[424943095,1781311840000,-186.506,0.00025,8]
[424943045,1781311840000,-176.888819,0.00023514,2]
[424943093,1781311840000,-2000.0,0.00025,120]
[424943043,1781311840000,-505.63870615,0.00021541,2]
[424943042,1781311840000,-168.7403039,0.00021455,2]
[424943032,1781311840000,-300.0,0.0001365,2]
[424943033,1781311840000,-5000.0,0.00013651,2]
[424943035,1781311840000,-250.07286682,0.00017706,2]
[424943031,1781311840000,-2692.95708468,0.00013514,2]
[424943037,1781311840000,-259.965266,0.00020632,2]
[424943034,1781311840000,-300.0,0.00015293,2]
[424943036,1781311840000,-169.0,0.00018,3]
[424943041,1781311840000,-6485.0005758,0.00021294,2]
[424943038,1781311840000,-3555.901307,0.00021045,2]
[424943040,1781311840000,-1000.0,0.0002121,2]
[424943053,1781311840000,-195.67465848,0.00023601,2]
[424943051,1781311840000,-182.87794684,0.00023601,2]
[424943050,1781311840000,-187.05789817,0.00023601,2]
[424943039,1781311840000,-190.229197,0.00021092,2]
[424943047,1781311840000,-696.1,0.00023562,2]
[424943044,1781311840000,-500.0,0.00021541,2]
[424943052,1781311840000,-193.81511176,0.00023601,2]
[424943091,1781311840000,-696.1,0.00024932,2]
[424943077,1781311840000,-374.11579635,0.00024458,2]
[424943085,1781311840000,-378.71168829,0.00024531,2]
[424943124,1781311840000,-500.0,0.00025341,2]
[424943128,1781311840000,-500.0,0.00025342,2]
[424943126,1781311840000,-500.0,0.00025342,2]
[424943096,1781311840000,-324.45669846,0.0002503,2]
[424943130,1781311840000,-500.0,0.00025342,2]
[424943135,1781311840000,-500.0,0.00025342,2]
[424943132,1781311840000,-500.0,0.00025342,2]
[424943123,1781311840000,-922.87393589,0.00025286,2]
[424943137,1781311840000,-500.0,0.00025342,2]
[424943142,1781311840000,-500.0,0.00025342,2]
[424943141,1781311840000,-500.0,0.00025342,2]
[424943146,1781311840000,-514.34085662,0.00025342,2]
[424943144,1781311840000,-500.0,0.00025342,2]
[424943148,1781311840000,-1557350.16050683,0.00025343,2]
[424943160,1781311840000,-1477.8415112,0.00025343,2]
[424943156,1781311840000,-820.325,0.00025343,2]
[424943139,1781311840000,-500.0,0.00025342,2]
[424943107,1781311840000,-561.17369452,0.0002503,2]
[424943133,1781311840000,-500.0,0.00025342,2]
[424943112,1781311840000,-587.02397543,0.0002503,2]
[424943079,1781311840000,-365.75589368,0.00024458,2]
[424943098,1781311840000,-385.8226221,0.0002503,2]
[424943108,1781311840000,-548.63384053,0.0002503,2]
[424943082,1781311840000,-391.34931695,0.00024458,2]
[424943080,1781311840000,-387.63022351,0.00024458,2]
[424943084,1781311840000,-345.60352642,0.00024458,2]
[424943100,1781311840000,-342.38576339,0.0002503,2]
[424943102,1781311840000,-392.00091538,0.0002503,2]
[424943087,1781311840000,-500.0,0.00024553,2]
[424943103,1781311840000,-497.50314238,0.0002503,2]
[424943114,1781311840000,-518.40528963,0.0002503,2]
[424943110,1781311840000,-581.44533527,0.0002503,2]
[424943105,1781311840000,-376.15131367,0.0002503,2]
[424943158,1781311840000,-183658.6379369,0.00025343,2]
[424943116,1781311840000,-233.58343992,0.0002503,2]
[424943121,1781311840000,-696.1,0.00025205,2]
[424943117,1781311840000,-568.06753243,0.00025104,2]
[424943119,1781311840000,-486.6850477,0.00025104,2]
[424943179,1781311841000,-671.77936835,0.00025343,2]
[424943177,1781311841000,-6085.88211101,0.00025343,2]
[424943424,1781311843000,-485.7107963,0.00025343,2]
[424943398,1781311843000,-1148.2849989,0.00025343,2]
[424943474,1781311846000,-1585.68992899,0.00025343,2]
[424943471,1781311846000,-113034.9980883,0.00025343,2]
[424943472,1781311846000,-494.293216,0.00025343,2]
[424943473,1781311846000,-524.30958529,0.00025343,2]
[424943487,1781312471000,-152.49209071,0.00011409,9]
[424943488,1781312525000,212.22604467,0.0001,2]
[424943769,1781313031000,-5000.0,0.0001107,2]
[424943765,1781313031000,-460.99863137,0.00010959,2]
[424943767,1781313031000,-488.25486846,0.00010959,2]
[424943782,1781313032000,-13497.13653386,0.00017,2]
[424943784,1781313032000,-598.70512035,0.00017,2]
[424943780,1781313032000,-4929.02179686,0.00017,2]
[424943777,1781313032000,-238.62329185,0.00013365,14]
[424943773,1781313032000,-2612.43889417,0.00012,2]
[424943775,1781313032000,-288.699,0.00012493,2]
[424943778,1781313032000,-186.341573,0.00015068,2]
[424943771,1781313032000,-151.0,0.0001164,2]
[424943808,1781313038000,-2696.13978985,0.00017,2]
[424943812,1781313040000,-2562.02674897,0.0001683,2]
[424943814,1781313040000,-2742.12265079,0.00017,2]
[424943813,1781313040000,-2437.97325103,0.0001683,2]
[424943985,1781313046000,-155.52158689,0.00023671,2]
[424943975,1781313046000,-36.01124854,0.00017,2]
[424943976,1781313046000,-1000.0,0.00017981,2]
[424943977,1781313046000,-257.2057,0.00017981,2]
[424943979,1781313046000,-227.0,0.00019899,2]
[424943978,1781313046000,-174.0,0.00018027,3]
[424943981,1781313046000,-500.0,0.00021541,2]
[424943980,1781313046000,-216.907,0.00020899,2]
[424943983,1781313046000,-371.25,0.00023562,2]
[424943982,1781313046000,-186.341573,0.00021918,2]
[424943988,1781313046000,-168.35210836,0.00023672,2]
[424943992,1781313046000,-371.25,0.00023836,2]
[424943986,1781313046000,-156.80036615,0.00023672,2]
[424943994,1781313046000,-351.82022964,0.00024125,2]
[424943997,1781313046000,-138.50419692,0.00024531,2]
[424943984,1781313046000,-176.10719263,0.00023671,2]
[424943995,1781313046000,-343.62041864,0.0002427,2]
[424943993,1781313046000,-371.25,0.0002411,2]
[424943996,1781313046000,-371.25,0.00024384,2]
[424943991,1781313046000,-205.43145803,0.00023672,2]
[424943989,1781313046000,-164.59015216,0.00023672,2]
[424943987,1781313046000,-179.45649065,0.00023672,2]
[424943990,1781313046000,-151.40894821,0.00023672,2]
[424944069,1781314232000,-566.94330747,0.00015529,2]
[424944068,1781314232000,-11.31024837,0.00015529,2]
[424944067,1781314232000,-252.85286502,0.00014744,14]
[424944128,1781314238000,-500.0,0.00016999,2]
[424944126,1781314238000,-4421.74644416,0.00015529,2]
[424944127,1781314238000,-615.908,0.00015686,2]
[424944131,1781314238000,-1147.75356528,0.0002029,2]
[424944132,1781314238000,-370.38964042,0.00020368,2]
[424944130,1781314238000,-266.0,0.00019899,2]
[424944133,1781314238000,-181.870804,0.00022227,2]
[424944129,1781314238000,-177.0,0.00018055,3]
[424944143,1781314239000,-184.88831223,0.00023671,2]
[424944144,1781314239000,-187.48837249,0.00024075,2]
[424944145,1781314239000,-337.14159142,0.00024075,2]
[424944147,1781314239000,-740.58544257,0.00024075,2]
[424944141,1781314239000,-219.52051261,0.00023671,2]
[424944142,1781314239000,-170.42025973,0.00023671,2]
[424944139,1781314239000,-151.51689752,0.00023671,2]
[424944146,1781314239000,-411.43635698,0.00024075,2]
[424944134,1781314239000,-168.52,0.00022747,7]
[424944135,1781314239000,-168.52,0.00022847,7]
[424944136,1781314239000,-168.53,0.00022947,7]